bitfinex/quotes_ETHUSD_20220202
["timestamp","ask_amount","ask_price","bid_price","bid_amount"]
[1643768019973,1.53294543,2758.5,2757.8,0.79708492]
[1643768020171,1.53294543,2758.5,2757.7,1.925667]
[1643768020570,2.45331222,2758.6,2757.7,1.925667]
[1643768020770,0.51277685,2758.6,2757.7,1.925667]
[1643768021171,1.53293185,2758.5,2757.7,1.925667]
[1643768021373,0.51277685,2758.6,2757.7,1.925667]
[1643768021374,0.1812,2758.6,2757.7,1.925667]
[1643768023271,0.1812,2758.6,2758.2,0.42301792]
[1643768023519,0.1812,2758.6,2757.7,1.4812]
[1643768023919,0.1812,2758.6,2758.1,0.69283859]
[1643768024119,2.14369033,2758.8,2758.1,0.69283859]
[1643768024319,1.53287905,2758.7,2758.1,0.69283859]
[1643768024522,0.1812,2758.6,2758.2,0.36219516]
[1643768024921,0.1812,2758.6,2758.1,0.69283859]
[1643768025129,0.1812,2758.6,2757.8,0.79708492]
[1643768025323,0.1812,2758.7,2757.7,1.4812]
[1643768025522,0.1812,2758.8,2758.1,0.79708492]
[1643768026145,1.53290317,2758.7,2758.2,0.42531002]
[1643768026327,2.18199239,2758.8,2758.2,0.42531002]
[1643768026328,0.1812,2758.8,2758.2,0.42531002]
[1643768026526,0.1812,2759.4,2758.2,0.43803192]
[1643768026726,1.53268127,2759.3,2758.3,0.1812]
[1643768026926,1.71388127,2759.2,2758.3,0.1812]
[1643768027126,1.53268127,2759.1,2758.3,0.97015763]
[1643768027368,1.88863224,2759.0,2758.3,1.08895763]
[1643768027568,1.53268127,2758.9,2758.3,1.08895763]
[1643768027966,0.35595097,2759.0,2758.3,1.08895763]
[1643768028566,0.35595097,2759.0,2758.3,1.88604255]
[1643768029771,0.1812,2759.2,2758.3,1.88604255]
[1643768029973,1.53268997,2759.1,2758.3,1.88604255]
[1643768030379,0.4812,2759.4,2758.3,1.08895763]
[1643768030380,0.1812,2759.0,2758.3,1.08895763]
[1643768030572,0.3,2759.4,2758.3,1.08895763]
[1643768030573,0.1812,2759.3,2758.3,1.08895763]
[1643768030773,1.53268024,2759.2,2758.3,1.08895763]
[1643768031017,1.7138773,2759.1,2758.7,0.79708492]
[1643768031219,0.1812,2759.2,2758.3,1.08895763]
[1643768031419,1.53267684,2759.1,2758.4,0.79708492]
[1643768031821,1.83267684,2759.1,2758.4,0.79708492]
[1643768032022,0.3,2759.1,2758.4,0.79708492]
[1643768032218,0.1812,2759.2,2758.4,0.79708492]
[1643768032420,1.53267961,2759.1,2758.4,0.79708492]
[1643768032819,1.83267961,2759.1,2758.4,0.79708492]
[1643768033123,1.83267961,2759.1,2758.7,0.37128925]
[1643768033124,0.3,2759.1,2758.7,0.37128925]
[1643768033321,0.1812,2759.2,2758.7,0.67128925]
[1643768033524,1.53266149,2759.1,2758.9,0.79708492]
[1643768033721,0.1812,2759.6,2758.7,0.67128925]
[1643768033925,1.53255003,2759.5,2758.7,0.67128925]
[1643768034123,1.53255003,2759.5,2759.1,0.82706828]
[1643768034325,0.67650553,2760.1,2759.2,0.32115094]
[1643768034326,1.53255003,2759.4,2759.2,0.32115094]
[1643768034523,0.34448554,2759.8,2758.8,0.1812]
[1643768034771,1.53245251,2759.7,2758.8,0.1812]
[1643768035373,1.53245251,2759.7,2758.8,1.1812]
[1643768035575,1.53245251,2759.7,2759.2,0.73296706]
[1643768035779,0.1812,2760.1,2759.2,0.73296706]
[1643768035780,1.53245251,2759.6,2759.2,0.73296706]
[1643768035973,1.53245251,2759.5,2759.2,0.73296706]
[1643768036173,1.53245251,2759.4,2759.2,0.73296706]
[1643768036384,0.1812,2759.9,2759.2,0.73296706]
[1643768036574,1.53247223,2759.8,2759.1,0.3]
[1643768036774,5.583189,2759.9,2758.9,1.4777]
[1643768036973,0.3,2759.7,2758.8,0.1812]
[1643768037173,3.79288889,2759.6,2758.7,0.1812]
[1643768037373,4.29169104,2759.6,2758.7,0.1812]
[1643768037574,0.32497366,2759.1,2758.6,0.1812]
[1643768037776,4.59169104,2759.6,2758.6,0.1812]
[1643768037777,1.53247223,2759.0,2758.6,0.1812]
[1643768037977,2.2733686,2759.5,2758.6,0.1812]
[1643768038173,2.2733686,2759.5,2758.5,7.7709]
[1643768038174,1.7138677,2759.4,2758.5,7.7709]
[1643768038378,1.5326677,2759.3,2758.5,7.7709]
[1643768038614,1.5326677,2759.2,2758.5,7.7709]
[1643768038821,1.5326677,2759.1,2758.5,7.7709]
[1643768039013,1.5326677,2759.4,2758.5,6.6358]
[1643768039214,0.3203149,2759.1,2758.5,6.6358]
[1643768039414,0.1812,2759.5,2758.6,1.0]
[1643768039615,1.53256218,2759.4,2758.6,1.0]
[1643768040218,1.53256218,2759.4,2758.5,6.6358]
[1643768040619,1.53256218,2759.3,2758.8,0.73462736]
[1643768040819,1.53256218,2759.2,2758.8,1.03462736]
[1643768041023,0.1812,2759.6,2758.8,1.03462736]
[1643768041219,1.53254875,2759.5,2758.8,1.03462736]
[1643768041422,1.53254875,2759.5,2759.1,0.39715366]
[1643768041621,0.1812,2759.7,2759.1,0.39715366]
[1643768041622,1.53254875,2759.4,2759.1,0.39715366]
[1643768042020,0.1812,2759.7,2759.1,0.39715366]
[1643768042021,1.53254875,2759.3,2759.1,0.39715366]
[1643768042267,0.97650553,2760.0,2759.1,0.39715366]
[1643768042268,0.1812,2759.9,2759.1,0.39715366]
[1643768042469,1.53244256,2759.8,2759.1,0.39715366]
[1643768042668,0.1811,2759.7,2759.1,0.39715366]
[1643768042871,1.53244256,2759.6,2759.1,0.69715366]
[1643768044268,0.3,2759.8,2759.1,0.69715366]
[1643768044269,1.53244256,2759.5,2759.1,0.69715366]
[1643768044469,1.53244256,2759.4,2759.1,0.69715366]
[1643768044669,1.53244256,2759.8,2759.1,0.69715366]
[1643768044873,1.53244256,2759.7,2759.1,0.69715366]
[1643768045073,1.53244256,2759.6,2759.1,0.69715366]
[1643768045273,0.4812,2759.9,2759.1,0.69715366]
[1643768045274,1.53244256,2759.5,2759.1,0.69715366]
[1643768045473,1.53244256,2759.4,2759.1,0.69715366]
[1643768045675,1.53244256,2759.3,2759.1,0.69715366]
[1643768045874,0.51650926,2759.9,2759.1,0.69715366]
[1643768046119,1.53238558,2759.8,2759.1,0.69715366]
[1643768046324,1.83238558,2759.8,2759.1,0.69715366]
[1643768046525,1.53238558,2759.7,2759.1,0.69715366]
[1643768048733,1.53238558,2759.7,2759.1,0.39715366]
[1643768050781,1.53238558,2759.7,2759.1,0.69715366]
[1643768054720,1.71348558,2759.7,2759.1,0.3]
[1643768054928,1.53238558,2759.6,2759.1,0.3]
[1643768055126,1.53238558,2759.6,2758.9,0.1812]
[1643768055127,2.156,2759.5,2758.9,0.1812]
[1643768055330,1.53238558,2759.4,2758.9,0.1812]
[1643768055527,0.1812,2759.3,2758.7,1.2122]
[1643768055829,1.53238558,2759.2,2758.8,0.41463084]
[1643768056226,1.53238558,2759.3,2758.8,0.41463084]
[1643768056435,1.53247076,2759.2,2758.8,0.71463084]
[1643768056632,0.1812,2759.4,2758.8,0.71463084]
[1643768056826,1.53246077,2759.3,2758.8,0.71463084]
[1643768057027,1.53246077,2759.3,2759.0,0.95264064]
[1643768057269,1.53127208,2759.3,2759.0,0.95264064]
[1643768057470,5.3721749,2760.2,2759.0,0.95264064]
[1643768057471,0.1812,2759.9,2759.0,1.25264064]
[1643768057671,0.3,2760.0,2759.0,1.25264064]
[1643768057871,0.1811,2759.9,2759.0,1.25264064]
[1643768058072,0.57612712,2760.0,2759.3,0.38885171]
[1643768058270,0.87612712,2760.0,2759.3,0.68885171]
[1643768058471,0.1811,2760.0,2759.3,0.68885171]
[1643768058672,0.1811,2760.0,2759.3,1.59469171]
[1643768058875,0.1811,2760.1,2759.3,1.59469171]
[1643768059575,0.9052349,2760.6,2759.3,1.59469171]
[1643768059576,0.1811,2760.5,2760.2,1.21011959]
[1643768059775,0.1811,2760.5,2759.4,7.24519]
[1643768059776,0.12393939,2760.1,2759.5,4.64622]
[1643768059976,0.12393939,2760.1,2759.8,0.78977402]
[1643768060177,0.12393939,2760.1,2759.8,0.97087402]
[1643768060478,0.12393939,2760.1,2759.8,2.27087402]
[1643768061231,0.12393939,2760.1,2759.8,2.38977402]
[1643768061935,0.12393939,2760.1,2759.8,3.29538402]
[1643768062126,0.12393939,2760.1,2760.0,0.9056]
[1643768062328,0.12393939,2760.1,2760.0,3.4556]
[1643768062528,0.12393939,2760.1,2760.0,3.7556]
[1643768062729,0.12393939,2760.1,2760.0,4.7556]
[1643768064029,0.12393939,2760.1,2760.0,2.2056]
[1643768064228,0.12393939,2760.1,2760.0,1.2056]
[1643768064433,0.12393939,2760.1,2760.0,2.2056]
[1643768064629,0.1811,2760.8,2760.0,2.2056]
[1643768064881,0.1811,2760.8,2760.1,3.2405982]
[1643768065081,0.28927107,2760.9,2760.3,0.90541]
[1643768065283,0.28927107,2760.9,2760.4,0.7051]
[1643768065674,0.28927107,2760.9,2760.8,0.76557868]
[1643768065876,0.28927107,2760.9,2760.8,1.06557868]
[1643768066983,0.28927107,2760.9,2760.8,1.97087868]
[1643768068627,0.28927107,2760.9,2760.8,0.3]
[1643768069637,0.28927107,2760.9,2760.8,1.177942]
[1643768070330,0.28927107,2760.9,2760.8,2.083232]
[1643768070732,0.28927107,2760.9,2760.8,3.083232]
[1643768071133,0.28927107,2760.9,2760.8,1.3]
[1643768071333,0.28927107,2760.9,2760.6,3.8022971]
[1643768071334,0.28927107,2760.9,2760.6,0.1811]
[1643768071538,0.28927107,2760.9,2760.5,0.62728896]
[1643768073870,0.28927107,2760.9,2760.5,1.16171862]
[1643768074877,0.23927107,2760.9,2760.5,1.16171862]
[1643768075077,0.23927107,2760.9,2760.8,0.72350452]
[1643768075273,0.23927107,2760.9,2760.8,1.02350452]
[1643768076139,0.23927107,2760.9,2760.8,0.3]
[1643768076344,0.23927107,2760.9,2760.7,0.3]
[1643768077344,0.23927107,2760.9,2760.7,1.17399647]
[1643768078143,0.23927107,2760.9,2760.7,0.3]
[1643768078343,0.23927107,2760.9,2760.6,0.3]
[1643768078741,0.23927107,2760.9,2760.5,1.16171862]
[1643768079342,0.23927107,2760.9,2760.5,1.89166213]
[1643768079543,0.23927107,2760.9,2760.5,2.89166213]
[1643768081970,0.23927107,2760.9,2760.5,3.07276213]
[1643768084423,0.23927107,2760.9,2760.6,0.90543]
[1643768084724,0.23927107,2760.9,2760.7,1.2054]
[1643768085924,0.23927107,2760.9,2760.8,1.81055]
[1643768086322,0.23927107,2760.9,2760.8,2.81055]
[1643768086821,0.23927107,2760.9,2760.8,1.0]
[1643768087271,0.23927107,2760.9,2760.7,3.2918962]
[1643768087474,0.23927107,2760.9,2760.7,2.2918962]
[1643768087672,1.86310333,2760.9,2760.7,2.2918962]
[1643768087879,1.1049888,2762.0,2760.9,3.8]
[1643768087880,2.1811,2761.9,2760.9,3.8]
[1643768088071,2.1811,2761.9,2760.8,1.09904427]
[1643768088072,1.53134715,2761.8,2761.1,1.81037]
[1643768088272,1.53134715,2761.8,2761.1,2.11037]
[1643768089077,1.53134715,2761.8,2761.3,2.2022893]
[1643768089276,1.53134715,2761.8,2761.3,2.5022893]
[1643768091120,1.53134715,2761.8,2761.4,0.90516]
[1643768091321,1.53134715,2761.8,2761.3,1.77412918]
[1643768091529,1.1049888,2762.0,2761.3,1.77412918]
[1643768091530,1.53134715,2761.7,2761.3,1.77412918]
[1643768091724,1.1049888,2762.0,2761.3,1.77412918]
[1643768091725,1.2858888,2762.0,2761.3,1.77412918]
[1643768091925,1.53126559,2761.9,2761.3,1.77412918]
[1643768092125,1.53126559,2761.9,2761.4,0.90516]
[1643768092728,1.83126559,2761.9,2761.4,0.90516]
[1643768092927,1.53126559,2761.8,2761.4,0.90516]
[1643768097174,1.53126559,2761.8,2761.5,0.9051149]
[1643768097379,1.53126559,2761.8,2761.5,2.7152149]
[1643768097578,1.1049888,2762.0,2761.6,0.90502]
[1643768097777,1.53112533,2761.9,2761.6,2.20502]
[1643768097980,1.1049888,2762.0,2761.6,2.20502]
[1643768098184,1.1049888,2762.0,2761.7,0.9438887]
[1643768098622,1.1049888,2762.0,2761.8,0.524]
[1643768098820,1.1049888,2762.0,2761.9,0.90484]
[1643768099022,1.0549888,2762.0,2761.9,1.42884]
[1643768099219,1.0549888,2762.0,2761.9,1.72884]
[1643768099420,1.0549888,2762.0,2761.9,4.15370374]
[1643768099823,1.0549888,2762.0,2761.9,5.15370374]
[1643768100426,1.0549888,2762.0,2761.9,4.62970374]
[1643768101030,1.0549888,2762.0,2761.9,4.5335558]
[1643768102272,1.0549888,2762.0,2761.9,2.52093751]
[1643768103774,0.9549888,2762.0,2761.9,2.52093751]
[1643768105379,0.9549888,2762.0,2761.9,2.52493751]
[1643768106223,2.48603249,2762.0,2761.9,2.52493751]
[1643768107126,0.1809,2762.6,2761.9,2.52493751]
[1643768107334,0.1809,2762.6,2762.1,1.8098031]
[1643768107532,0.03627254,2762.9,2761.9,0.7250027]
[1643768107533,0.85740553,2762.8,2761.9,0.7250027]
[1643768107726,0.85740553,2762.8,2761.9,1.7250027]
[1643768107926,0.85740553,2762.8,2761.9,0.7250027]
[1643768108225,0.85740553,2762.8,2761.9,0.4250027]
[1643768108427,0.35167943,2762.6,2761.9,0.7250027]
[1643768108633,0.4809,2762.8,2761.9,0.7250027]
[1643768108827,0.1809,2762.8,2761.9,0.7250027]
[1643768109127,0.1809,2762.8,2761.9,1.7250027]
[1643768109331,0.1809,2762.8,2762.4,0.24781759]
[1643768109532,0.1809,2762.8,2762.4,0.49563518]
[1643768111181,0.44717718,2762.6,2762.4,0.49563518]
[1643768111376,0.53485714,2762.1,2762.0,5.2713]
[1643768111576,0.53485714,2762.1,2761.9,0.4250027]
[1643768111777,0.53485714,2762.1,2762.0,0.68259781]
[1643768112175,0.53485714,2762.1,2761.9,0.4250027]
[1643768112482,0.53485714,2762.1,2761.9,0.004]
[1643768115440,0.53485714,2762.1,2761.9,0.90901]
[1643768115829,0.53485714,2762.1,2761.9,1.20901]
[1643768116434,0.53485714,2762.1,2762.0,0.77905321]
[1643768120687,0.53485714,2762.1,2762.0,0.78305321]
[1643768121121,0.1809,2762.8,2762.1,3.5]
[1643768121320,0.1809,2762.8,2762.4,0.90479]
[1643768121723,0.03627254,2762.9,2762.4,1.50479]
[1643768121920,0.03627254,2762.9,2762.4,1.20479]
[1643768122120,0.03627254,2762.9,2762.8,0.34533004]
[1643768122522,0.03627254,2762.9,2762.8,1.55006004]
[1643768122919,0.03627254,2762.9,2762.8,6.42776004]
[1643768123520,0.03627254,2762.9,2762.8,6.72776004]
[1643768123720,0.03627254,2762.9,2762.8,7.72776004]
[1643768124119,0.03627254,2762.9,2762.8,6.72776004]
[1643768124324,0.03627254,2762.9,2762.8,7.72776004]
[1643768125782,0.03627254,2762.9,2762.8,7.73176004]
[1643768126985,0.03627254,2762.9,2762.8,6.82703004]
[1643768127380,0.03627254,2762.9,2762.8,0.004]
[1643768127381,1.56691843,2762.9,2762.8,0.004]
[1643768127784,2.04781843,2762.9,2762.8,0.004]
[1643768129020,0.21717254,2762.9,2762.8,0.004]
[1643768129223,0.03627254,2762.9,2762.8,0.004]
[1643768129421,1.56690335,2762.9,2762.8,0.004]
[1643768130225,0.03627254,2762.9,2762.8,0.004]
[1643768130626,1.56689504,2762.9,2762.8,0.004]
[1643768131225,1.51689504,2762.9,2762.8,0.004]
[1643768131427,1.51689504,2762.9,2762.5,3.44619647]
[1643768131428,0.37116208,2763.2,2762.5,3.44619647]
[1643768132778,2.45379866,2763.4,2762.5,3.44619647]
[1643768132978,2.3556634,2763.4,2762.5,3.44619647]
[1643768133176,2.35754291,2763.4,2762.5,3.44619647]
[1643768133378,2.14134864,2763.4,2762.5,3.44619647]
[1643768133679,0.1809,2763.4,2762.7,1.8094485]
[1643768133880,1.2293,2763.7,2762.7,1.8094485]
[1643768133881,0.1809,2763.5,2763.1,0.31582283]
[1643768134179,0.1809,2763.6,2763.1,0.31582283]
[1643768134884,0.1809,2763.7,2763.1,0.31582283]
[1643768135281,0.85740553,2763.7,2763.1,0.31582283]
[1643768135681,0.67650553,2763.6,2763.1,0.31582283]
[1643768136023,0.1809,2763.5,2763.1,0.31582283]
[1643768136924,0.1809,2763.6,2763.1,0.31582283]
[1643768137323,0.1809,2763.7,2763.1,0.31582283]
[1643768139327,0.1809,2763.7,2763.1,1.22044283]
[1643768139527,0.1309,2763.7,2763.1,1.22044283]
[1643768139794,0.1809,2764.0,2763.3,1.80895]
[1643768139999,0.67650553,2764.1,2763.4,0.04999]
[1643768140202,0.67650553,2764.2,2763.9,0.41471259]
[1643768140400,0.85720553,2764.4,2763.9,0.41471259]
[1643768140797,0.0807,2764.4,2763.9,0.41471259]
[1643768141298,0.0807,2764.4,2764.0,0.00409025]
[1643768141603,0.0807,2764.4,2764.1,0.3]
[1643768141898,0.0807,2764.4,2764.2,0.18484949]
[1643768143099,0.0807,2764.4,2764.2,2.16855972]
[1643768143299,0.0807,2764.4,2764.3,0.90417]
[1643768143921,0.0807,2764.4,2764.1,1.98906]
[1643768144123,0.0807,2764.4,2764.1,0.1807]
[1643768144325,0.0807,2764.4,2764.0,0.1807]
[1643768144524,0.0807,2764.4,2763.9,0.41471259]
[1643768145523,0.0807,2764.4,2763.9,1.08695638]
[1643768145926,0.0807,2764.4,2763.9,0.41471259]
[1643768146325,0.0807,2764.4,2763.7,0.10521896]
[1643768147125,0.0807,2764.4,2763.7,0.9344689]
[1643768147574,0.0807,2764.4,2763.8,0.41372957]
[1643768148279,0.0807,2764.4,2763.9,2.01595116]
[1643768148481,0.0807,2764.4,2764.0,0.1807]
[1643768148675,0.0807,2764.4,2763.8,2.12072957]
[1643768149077,0.0807,2764.4,2763.9,2.10478547]
[1643768149277,0.0807,2764.4,2764.0,0.1807]
[1643768149675,0.0807,2764.4,2764.3,0.74530923]
[1643768150279,0.0807,2764.4,2764.0,5.4755]
[1643768150686,0.0807,2764.4,2763.9,0.1807]
[1643768151220,0.0807,2764.4,2764.1,0.92067563]
[1643768151424,0.0807,2764.4,2764.1,0.75044832]
[1643768151623,0.0807,2764.4,2763.9,0.1807]
[1643768152222,0.0807,2764.4,2763.9,1.98933]
[1643768152823,0.0807,2764.4,2763.9,2.8937]
[1643768153033,0.0807,2764.4,2764.1,0.70238641]
[1643768153426,0.0807,2764.4,2764.1,1.60664641]
[1643768153824,0.0807,2764.4,2764.1,3.61312461]
[1643768154226,0.0807,2764.4,2764.1,3.91312461]
[1643768154625,0.0807,2764.4,2764.2,0.43453071]
[1643768155687,0.0307,2764.4,2764.2,0.43453071]
[1643768156581,0.0296694,2764.4,2764.2,1.33871071]
[1643768156780,0.0296694,2764.4,2764.3,1.98371023]
[1643768156982,0.0296694,2764.4,2764.2,0.61523071]
[1643768157889,0.0296694,2764.4,2764.2,0.43453071]
[1643768160438,0.0296694,2764.4,2764.1,1.08493]
[1643768161638,0.56630403,2765.0,2764.2,0.33654209]
[1643768161841,1.52812342,2764.9,2764.2,0.33654209]
[1643768162679,1.52812342,2765.1,2764.2,0.33654209]
[1643768162874,0.08766,2765.0,2764.1,0.73147679]
[1643768163079,1.52812342,2764.9,2764.1,0.73147679]
[1643768163274,1.82812342,2764.9,2764.1,0.73147679]
[1643768163478,1.47812342,2764.8,2764.1,0.73147679]
[1643768163879,0.38559269,2764.2,2764.1,0.73147679]
[1643768164079,4.63559269,2764.2,2764.1,0.55077679]
[1643768164475,1.71339528,2764.6,2764.1,0.55077679]
[1643768164675,1.3,2764.6,2764.1,0.55077679]
[1643768164879,0.3,2764.6,2764.1,0.55077679]
[1643768165083,0.08766,2764.7,2764.1,0.55077679]
[1643768165084,0.38766,2764.7,2764.1,0.55077679]
[1643768165279,0.3,2764.7,2764.1,0.55077679]
[1643768165478,0.08767,2764.8,2764.1,0.55077679]
[1643768165678,0.37338816,2764.6,2764.1,0.55077679]
[1643768166132,0.08767,2764.8,2764.1,0.55077679]
[1643768166324,0.08766,2764.9,2764.1,0.55077679]
[1643768167126,0.39813567,2764.4,2764.1,0.55077679]
[1643768167527,0.94399756,2764.9,2764.1,0.55077679]
[1643768167726,2.24399756,2764.9,2764.1,0.55077679]
[1643768167925,1.24399756,2764.9,2764.1,0.55077679]
[1643768168126,1.94399756,2764.9,2764.1,0.55077679]
[1643768168327,0.08766,2764.9,2764.1,0.55077679]
[1643768168526,0.40686095,2764.7,2764.1,0.96113898]
[1643768168730,0.40686095,2764.7,2764.1,0.55077679]
[1643768169531,1.80172051,2764.9,2764.1,0.55077679]
[1643768169778,0.08766,2765.0,2764.1,2.63578679]
[1643768169979,0.08766,2765.2,2764.1,1.63578679]
[1643768170379,0.08766,2765.2,2764.1,2.81378679]
[1643768170579,1.17931487,2765.2,2764.1,2.81378679]
[1643768170781,1.17931487,2765.2,2764.1,0.73147679]
[1643768170782,0.67650553,2765.0,2764.1,0.73147679]
[1643768171180,1.06417553,2765.0,2764.1,0.73147679]
[1643768171780,1.06417553,2765.0,2764.4,0.37869338]
[1643768171980,1.06417553,2765.0,2764.1,0.15493712]
[1643768172179,1.06417553,2765.0,2764.3,1.15173758]
[1643768172379,1.06417553,2765.0,2764.3,1.10173758]
[1643768172580,0.38767,2765.0,2764.3,0.39863992]
[1643768172784,0.08767,2765.0,2764.3,0.39863992]
[1643768173184,0.1134,2765.1,2764.3,0.39863992]
[1643768173826,0.67650553,2765.0,2764.3,0.39863992]
[1643768174828,0.1134,2765.1,2764.7,0.73647701]
[1643768175027,0.1134,2765.1,2764.4,0.90423]
[1643768175629,0.41259,2765.0,2764.4,0.90423]
[1643768176829,0.78990553,2765.2,2764.8,0.6859206]
[1643768177036,0.1134,2765.2,2764.8,1.5900206]
[1643768177474,1.1049888,2765.3,2764.8,0.9041]
[1643768177677,1.78149433,2765.3,2764.8,0.9041]
[1643768178276,0.67650553,2765.2,2764.6,5.5496]
[1643768178474,0.67650553,2765.2,2764.7,0.90414]
[1643768178676,2.08149433,2765.3,2764.7,0.90414]
[1643768179282,0.35248286,2765.0,2764.7,0.90414]
[1643768179880,0.35248286,2765.0,2764.6,5.5496]
[1643768180079,2.08149433,2765.3,2764.6,6.50176331]
[1643768180280,2.19489433,2765.3,2764.6,6.50176331]
[1643768180681,0.67650553,2765.2,2764.6,6.50176331]
[1643768180882,2.18783178,2765.3,2764.6,6.50176331]
[1643768181336,0.32670018,2765.1,2764.6,6.50176331]
[1643768183639,0.32670018,2765.1,2764.7,0.07647954]
[1643768183640,1.50333543,2765.0,2764.7,0.07647954]
[1643768183840,1.50333543,2765.0,2764.6,6.50176331]
[1643768184447,2.17984096,2765.2,2764.6,0.95216331]
[1643768184646,2.17984096,2765.2,2764.7,0.07647866]
[1643768184902,2.17984096,2765.2,2764.5,2.1082]
[1643768185105,2.17984096,2765.2,2764.6,0.07647847]
[1643768185303,1.50333543,2765.1,2764.6,0.07647847]
[1643768185603,1.50333543,2765.0,2764.6,0.8794646]
[1643768185802,1.50333543,2764.9,2764.7,0.07647847]
[1643768186004,1.50333543,2764.8,2764.5,2.1082]
[1643768186203,1.51132625,2765.3,2764.6,0.07648155]
[1643768186204,1.50333543,2764.7,2764.6,0.07648155]
[1643768186904,1.50333543,2764.9,2764.6,0.85314375]
[1643768187209,1.50333543,2764.8,2764.7,0.07648155]
[1643768187407,1.50333543,2764.9,2764.7,0.07648155]
[1643768188105,1.50333543,2764.9,2764.7,0.98066155]
[1643768188302,1.50333543,2764.9,2764.7,0.90418]
[1643768188532,1.50333543,2764.9,2764.8,0.07647576]
[1643768188729,1.50333543,2764.9,2764.7,0.90418]
[1643768188929,1.50333543,2764.9,2764.8,2.0]
[1643768189132,1.1049888,2765.3,2764.8,2.08908902]
[1643768189337,1.50465649,2765.2,2764.9,0.25717168]
[1643768189530,1.50465649,2765.2,2765.0,0.07647168]
[1643768189735,1.50465649,2765.2,2765.0,0.37647168]
[1643768189935,1.50465649,2765.2,2765.1,0.78103116]
[1643768190138,1.50465649,2765.2,2765.0,0.3]
[1643768190139,1.50465649,2765.2,2765.0,0.90392]
[1643768190344,1.50465649,2765.2,2764.8,1.82055734]
[1643768190345,1.50465649,2765.2,2764.8,1.98864]
[1643768190536,1.50465649,2765.2,2764.8,1.80794]
[1643768190537,1.80465649,2765.2,2764.8,1.80794]
[1643768190733,1.50465649,2765.1,2764.8,1.80794]
[1643768191335,0.43550025,2764.9,2764.8,1.80794]
[1643768191535,1.94015674,2764.9,2764.8,1.88441345]
[1643768191735,1.94015674,2764.9,2764.8,1.80794]
[1643768191936,1.94015674,2764.9,2764.8,0.17647519]
[1643768192775,1.50465649,2764.9,2764.8,0.17647519]
[1643768192976,2.08149433,2765.3,2764.8,0.17647519]
[1643768192977,1.50465649,2765.2,2764.8,0.17647519]
[1643768193377,2.18116202,2765.2,2764.8,0.17647519]
[1643768193578,1.50465649,2765.1,2764.8,0.17647519]
[1643768193780,1.83649006,2765.0,2764.8,0.17647519]
[1643768193980,1.50465649,2764.9,2764.8,0.17647519]
[1643768194991,1.50465649,2764.9,2764.5,1.80833]
[1643768195182,1.50465649,2764.9,2764.6,0.07647627]
[1643768195382,1.50465649,2764.8,2764.6,0.07647627]
[1643768195581,1.50465649,2764.7,2764.6,0.98063627]
[1643768196028,1.50465649,2765.1,2764.6,0.98063627]
[1643768196229,1.50465649,2764.7,2764.6,0.98063627]
[1643768196531,1.85918319,2765.0,2764.6,0.90416]
[1643768196729,1.50465649,2764.7,2764.6,0.98063376]
[1643768197029,1.50498095,2764.9,2764.6,0.07647376]
[1643768197229,1.50498095,2764.9,2764.7,0.07647376]
[1643768197430,1.50498095,2764.9,2764.4,6.40852093]
[1643768197633,1.50498095,2764.9,2764.5,0.07647445]
[1643768198443,22.73498095,2764.9,2764.3,0.1807]
[1643768198639,22.73498095,2764.9,2764.1,0.25]
[1643768198640,0.99999999,2764.7,2764.1,0.25]
[1643768198836,25.52488648,2764.6,2763.9,5.495]
[1643768199034,25.12399723,2764.5,2764.0,0.07649356]
[1643768199241,3.3308917,2764.4,2763.9,5.3143]
[1643768199440,1.50498095,2764.3,2764.0,0.0764951]
[1643768199805,1.82591075,2764.4,2763.7,1.1272]
[1643768199806,1.50498095,2764.2,2763.7,1.1272]
[1643768200006,1.50498095,2764.1,2763.8,0.07649282]
[1643768200216,1.50498095,2764.0,2763.9,0.07649282]
[1643768200407,1.50498095,2764.0,2763.7,0.3]
[1643768200408,0.1134,2764.6,2763.8,0.07649282]
[1643768200610,1.86387393,2764.5,2763.8,0.07649282]
[1643768200808,1.47920334,2764.4,2763.9,0.07649282]
[1643768201112,1.47920334,2764.4,2764.0,0.90434]
[1643768201307,1.47920334,2764.4,2764.1,0.07649282]
[1643768201807,1.47920334,2764.4,2763.7,1.80868]
[1643768201808,1.47920334,2764.4,2764.2,0.07649282]
[1643768202010,1.47920334,2764.3,2764.0,0.90439]
[1643768202208,1.47920334,2764.2,2764.1,0.07648807]
[1643768202610,1.47920334,2764.5,2764.0,0.07648807]
[1643768202814,1.47920334,2764.4,2764.1,0.07648807]
[1643768203009,1.47920334,2764.3,2764.2,0.07648807]
[1643768203214,1.47920334,2764.3,2763.9,1.80868]
[1643768203409,1.47920334,2764.2,2764.0,0.0764896]
[1643768203638,1.47920334,2764.1,2764.0,0.0764896]
[1643768203846,1.47920334,2764.6,2764.0,0.0764896]
[1643768204036,0.5302658,2764.5,2764.0,0.0764896]
[1643768204237,1.47920334,2764.4,2764.0,0.0764896]
[1643768205043,1.47920334,2764.3,2764.0,0.0764896]
[1643768205239,1.47920334,2764.2,2764.0,0.0764896]
[1643768205446,0.1134,2764.7,2764.0,0.0764896]
[1643768205640,1.47886411,2764.6,2764.0,0.0764896]
[1643768205840,0.1134,2764.5,2764.0,0.0764896]
[1643768206040,1.87932449,2764.4,2764.0,0.0764896]
[1643768206245,2.309778,2764.3,2764.0,0.0764896]
[1643768206442,1.47886411,2764.2,2764.1,0.0764896]
[1643768206842,1.47886411,2764.3,2763.9,0.0764896]
[1643768207585,1.47886411,2764.2,2763.9,0.0764896]
[1643768207786,0.1134,2764.5,2763.9,0.0764896]
[1643768207787,1.47886411,2764.1,2763.9,0.0764896]
[1643768207990,0.89264529,2764.5,2763.9,0.0764896]
[1643768208188,1.47956974,2764.4,2763.9,0.0764896]
[1643768208597,1.87159235,2764.4,2763.9,0.0764896]
[1643768208790,1.47956974,2764.3,2763.9,0.0764896]
[1643768209593,1.47956974,2764.2,2763.9,0.0764896]
[1643768209789,1.47956974,2764.5,2763.9,0.0764896]
[1643768209990,0.1134,2764.6,2763.9,0.0764896]
[1643768209991,1.47956974,2764.4,2763.9,0.0764896]
[1643768210290,1.47956974,2764.3,2763.9,0.0764896]
[1643768210496,1.47956974,2764.2,2763.9,0.0764896]
[1643768210690,1.47956974,2764.1,2763.9,0.0764896]
[1643768210892,0.32435969,2764.4,2763.9,0.0764896]
[1643768211132,1.48021885,2764.3,2763.9,0.0764896]
[1643768213142,1.48021885,2764.3,2763.9,0.9808596]
[1643768213341,1.48021885,2764.2,2764.0,0.0764896]
[1643768213538,1.48013489,2764.1,2764.0,0.0764896]
[1643768213740,1.48014639,2764.1,2764.0,0.0764896]